bitfinex/quotes_BTCUSD_20250727
["timestamp","ask_amount","ask_price","bid_price","bid_amount"]
[1753656704319,6.54052209,119810.0,119800.0,0.00508137]
[1753656704775,6.20587589,119810.0,119800.0,0.00308137]
[1753656705009,6.87516829,119810.0,119800.0,0.00308137]
[1753656705913,6.87827829,119810.0,119800.0,0.00308137]
[1753656706357,6.88607238,119810.0,119800.0,0.00308137]
[1753656707408,6.90165927,119810.0,119800.0,0.00308137]
[1753656708098,7.10257776,119810.0,119800.0,0.00308137]
[1753656708318,7.28241476,119810.0,119800.0,0.00308137]
[1753656708853,7.2785692,119810.0,119800.0,0.00308137]
[1753656709079,7.28441432,119810.0,119800.0,0.00308137]
[1753656709311,7.39021083,119810.0,119800.0,0.00308137]
[1753656709535,7.39021011,119810.0,119800.0,0.00308137]
[1753656712668,7.38710011,119810.0,119800.0,0.00308137]
[1753656712911,7.36310817,119810.0,119800.0,0.00308137]
[1753656713425,6.4946291,119810.0,119800.0,0.03635137]
[1753656713700,6.4926091,119810.0,119800.0,0.06232137]
[1753656713939,6.5174891,119810.0,119800.0,0.00308137]
[1753656714452,6.4296191,119810.0,119800.0,0.00308137]
[1753656715352,1.4296191,119810.0,119800.0,0.07301137]
[1753656715569,6.4296191,119810.0,119800.0,0.07301137]
[1753656715801,6.4296191,119810.0,119800.0,0.08861137]
[1753656716257,6.4565157,119810.0,119800.0,0.08861137]
[1753656717282,6.4545157,119810.0,119800.0,0.08961137]
[1753656717742,6.4555157,119810.0,119800.0,0.08666137]
[1753656718166,6.4545157,119810.0,119800.0,0.08666137]
[1753656718385,6.4545157,119810.0,119800.0,0.03824137]
[1753656718856,6.71201822,119810.0,119800.0,1e-08]
[1753656719117,5.94110325,119790.0,119780.0,0.07067]
[1753656719334,6.40365446,119790.0,119780.0,0.07291137]
[1753656719784,0.62443424,119780.0,119770.0,0.05137]
[1753656720012,5.88638545,119780.0,119770.0,0.05353]
[1753656720263,5.88848545,119780.0,119770.0,0.05353]
[1753656720543,5.91357745,119780.0,119770.0,0.05353]
[1753656720781,5.93990412,119780.0,119770.0,0.05353]
[1753656721255,5.93278493,119770.0,119760.0,0.05149152]
[1753656721498,5.93278493,119770.0,119710.0,0.039]
[1753656721499,0.52376161,119720.0,119710.0,0.039]
[1753656721741,0.95664793,119720.0,119710.0,0.04116]
[1753656721983,0.94829546,119720.0,119710.0,0.04164643]
[1753656722471,0.94829546,119720.0,119710.0,0.04459643]
[1753656722965,0.6675431,119720.0,119710.0,0.09019643]
[1753656723190,0.97327238,119720.0,119710.0,0.09019643]
[1753656723444,0.97327238,119720.0,119710.0,0.13861643]
[1753656723661,0.80621585,119720.0,119710.0,0.13861643]
[1753656723916,0.7978631,119720.0,119710.0,0.13861643]
[1753656724157,0.80621529,119720.0,119710.0,0.13861643]
[1753656724408,0.9649197,119720.0,119710.0,0.13861643]
[1753656724632,0.95656709,119720.0,119710.0,0.14661643]
[1753656725730,0.98215264,119720.0,119710.0,0.14661643]
[1753656725960,0.99773891,119720.0,119710.0,0.14661643]
[1753656727742,0.99773891,119720.0,119710.0,0.09524643]
[1753656727743,1.04722891,119720.0,119710.0,0.09524643]
[1753656728021,1.04722891,119720.0,119710.0,0.09819643]
[1753656728232,6.04722891,119720.0,119710.0,0.09819643]
[1753656728453,6.04722063,119720.0,119710.0,0.09019643]
[1753656729599,6.12232163,119720.0,119710.0,0.08724643]
[1753656729818,6.12232163,119720.0,119710.0,0.04464643]
[1753656730290,6.17232163,119720.0,119710.0,0.04864643]
[1753656730527,6.12232163,119720.0,119710.0,0.07384643]
[1753656730747,6.12232163,119720.0,119710.0,0.07584643]
[1753656730973,6.12232163,119720.0,119710.0,0.07784643]
[1753656731201,6.12232163,119720.0,119710.0,0.10924643]
[1753656731653,6.12668212,119720.0,119710.0,0.10924643]
[1753656732611,1.12668212,119720.0,119710.0,0.10924643]
[1753656732837,6.12668212,119720.0,119710.0,0.10924643]
[1753656734121,6.12981212,119720.0,119710.0,0.04348643]
[1753656734339,6.13564968,119720.0,119710.0,0.04348643]
[1753656735218,6.18564968,119720.0,119710.0,0.04348643]
[1753656735957,6.18564968,119720.0,119710.0,0.04148643]
[1753656736392,6.18564968,119720.0,119710.0,0.03948643]
[1753656736824,6.18564968,119720.0,119710.0,0.04048643]
[1753656737048,6.18564968,119720.0,119710.0,0.04148643]
[1753656737483,6.18251968,119720.0,119710.0,0.04148643]
[1753656737708,1.18251968,119720.0,119710.0,0.10704643]
[1753656737924,6.18251968,119720.0,119710.0,0.10704643]
[1753656738182,6.13251968,119720.0,119710.0,0.10704643]
[1753656738389,6.18251968,119720.0,119710.0,0.10704643]
[1753656738613,6.63161968,119720.0,119710.0,0.10704643]
[1753656739284,6.66948968,119720.0,119710.0,0.10704643]
[1753656739550,6.63161968,119720.0,119710.0,0.10704643]
[1753656739775,6.63474968,119720.0,119710.0,0.04148643]
[1753656741131,6.7159004,119720.0,119710.0,0.04148643]
[1753656741353,5.73287282,119710.0,119700.0,0.0004]
[1753656741568,6.12435567,119710.0,119700.0,0.0004]
[1753656741785,6.33526428,119710.0,119700.0,0.0004]
[1753656741998,6.36037228,119710.0,119700.0,0.0004]
[1753656742869,6.36037228,119710.0,119700.0,0.0014]
[1753656742870,6.11336367,119710.0,119700.0,0.0014]
[1753656743086,6.14746942,119710.0,119700.0,0.11793]
[1753656743359,0.67423639,119710.0,119700.0,0.11693]
[1753656743567,0.61491233,119710.0,119700.0,0.11693]
[1753656743816,0.94655909,119710.0,119700.0,0.11793]
[1753656744037,0.81619909,119710.0,119700.0,0.11793]
[1753656744298,0.94655909,119710.0,119700.0,0.11793]
[1753656744982,0.96400811,119710.0,119700.0,0.11793]
[1753656745641,0.96700811,119710.0,119700.0,0.11793]
[1753656750148,0.96696811,119710.0,119700.0,0.11793]
[1753656750599,0.83664811,119710.0,119700.0,0.11793]
[1753656750809,0.96696811,119710.0,119700.0,0.11793]
[1753656752156,0.63598414,119710.0,119700.0,0.11793]
[1753656752355,0.96702414,119710.0,119700.0,0.11793]
[1753656752601,0.80830689,119710.0,119700.0,0.11793]
[1753656752777,0.98373076,119710.0,119700.0,0.11793]
[1753656753009,0.98373076,119710.0,119700.0,0.11693]
[1753656753224,0.85341076,119710.0,119700.0,0.11693]
[1753656753438,0.64083132,119710.0,119700.0,0.11693]
[1753656753655,0.76387033,119710.0,119700.0,0.61905129]
[1753656753870,0.4155173,119710.0,119700.0,0.61905129]
[1753656754092,0.4155173,119710.0,119700.0,0.29236851]
[1753656754330,0.4155173,119710.0,119700.0,0.28501437]
[1753656754570,0.7555173,119710.0,119700.0,0.28501437]
[1753656755031,0.77901156,119710.0,119700.0,0.28501437]
[1753656755032,0.77701156,119710.0,119700.0,0.28501437]
[1753656755275,1.18482929,119710.0,119700.0,0.28501437]
[1753656755502,1.18482929,119710.0,119700.0,0.29336858]
[1753656755725,1.18482929,119710.0,119700.0,0.29236858]
[1753656755939,1.18482929,119710.0,119700.0,0.29436858]
[1753656756503,0.78482929,119710.0,119700.0,0.65446716]
[1753656756723,0.77896722,119710.0,119700.0,0.65446723]
[1753656756941,0.77114949,119710.0,119700.0,0.66282096]
[1753656760354,0.77114949,119710.0,119700.0,0.65446723]
[1753656760575,0.77114949,119710.0,119700.0,0.66282096]
[1753656761668,0.7711538,119710.0,119700.0,0.66282096]
[1753656761885,0.7711538,119710.0,119700.0,0.65446723]
[1753656762306,0.7711538,119710.0,119700.0,0.66282109]
[1753656762821,0.7711538,119710.0,119700.0,0.28601437]
[1753656763073,0.64918676,119710.0,119700.0,0.11893]
[1753656763300,0.8179538,119710.0,119700.0,0.23759437]
[1753656763762,0.8179538,119710.0,119700.0,0.28650437]
[1753656764222,0.82630669,119710.0,119700.0,0.28650437]
[1753656764868,0.83465965,119710.0,119700.0,0.28650437]
[1753656765092,0.84301275,119710.0,119700.0,0.28650437]
[1753656765342,0.81902315,119710.0,119700.0,0.28650437]
[1753656765581,0.82737618,119710.0,119700.0,0.28650437]
[1753656765792,0.47967019,119710.0,119700.0,0.28650437]
[1753656766002,0.81067019,119710.0,119700.0,0.28650437]
[1753656766479,0.81902322,119710.0,119700.0,0.28650437]
[1753656766937,0.81067019,119710.0,119700.0,0.28650437]
[1753656767155,0.81902322,119710.0,119700.0,0.28650437]
[1753656767371,0.81902315,119710.0,119700.0,0.28650437]
[1753656767860,0.81902315,119710.0,119700.0,0.28450437]
[1753656768317,0.81902315,119710.0,119700.0,0.28650437]
[1753656768497,0.82737618,119710.0,119700.0,0.28750437]
[1753656769706,0.81067019,119710.0,119700.0,0.29385858]
[1753656769915,0.7554773,119710.0,119700.0,0.29585858]
[1753656770153,0.7554773,119710.0,119700.0,0.30421272]
[1753656770344,0.76383019,119710.0,119700.0,0.29585858]
[1753656770784,0.76383019,119710.0,119700.0,0.28750437]
[1753656771019,0.7554373,119710.0,119700.0,0.64760343]
[1753656771667,0.7554373,119710.0,119700.0,0.65595729]
[1753656771884,0.7554373,119710.0,119700.0,0.64760343]
[1753656772299,0.7554373,119710.0,119700.0,0.6392495]
[1753656772508,0.7554373,119710.0,119700.0,0.64760364]
[1753656772722,0.7554373,119710.0,119700.0,0.65595757]
[1753656773147,0.7554373,119710.0,119700.0,0.64760364]
[1753656773386,0.6251973,119710.0,119700.0,0.6643113]
[1753656773600,0.7554373,119710.0,119700.0,0.66431082]
[1753656774089,0.67096,119710.0,119700.0,0.66431082]
[1753656774730,0.67096,119710.0,119700.0,0.66331082]
[1753656774939,0.67096,119710.0,119700.0,0.66431082]
[1753656775153,0.67096,119710.0,119700.0,0.66331082]
[1753656775583,0.67096,119710.0,119700.0,0.66631082]
[1753656776281,0.67096,119710.0,119700.0,0.66431082]
[1753656776676,0.67096,119710.0,119700.0,0.66631082]
[1753656777107,0.67096,119710.0,119700.0,0.3292739]
[1753656777313,0.67096,119710.0,119700.0,0.66431082]
[1753656777541,0.67096,119710.0,119700.0,0.66731082]
[1753656778010,0.67096,119710.0,119700.0,0.29050437]
[1753656778227,0.71697,119710.0,119700.0,0.30721244]
[1753656778461,0.71697,119710.0,119700.0,0.64224936]
[1753656778688,0.8034273,119710.0,119700.0,0.23864437]
[1753656779176,0.8034273,119710.0,119700.0,0.5820355]
[1753656779398,0.8034273,119710.0,119700.0,0.57368129]
[1753656779610,0.8034273,119710.0,119700.0,0.58203543]
[1753656779822,0.8034273,119710.0,119700.0,0.25535272]
[1753656780011,0.8034273,119710.0,119700.0,0.24699858]
[1753656780228,0.8034273,119710.0,119700.0,0.25535272]
[1753656780485,0.8034273,119710.0,119700.0,0.23864437]
[1753656780486,0.81178026,119710.0,119700.0,0.23864437]
[1753656780946,0.81483026,119710.0,119700.0,0.23864437]
[1753656781166,0.8064773,119710.0,119700.0,0.24699851]
[1753656781381,0.8034273,119710.0,119700.0,0.23864437]
[1753656781588,0.8034273,119710.0,119700.0,0.25535251]
[1753656781819,0.8034273,119710.0,119700.0,0.25855251]
[1753656782030,0.8034273,119710.0,119700.0,0.57688129]
[1753656782275,0.8034273,119710.0,119700.0,0.59358943]
[1753656783655,0.8034273,119710.0,119700.0,0.5935895]
[1753656783865,0.8034273,119710.0,119700.0,0.5959435]
[1753656784089,0.8034273,119710.0,119700.0,0.6019435]
[1753656784306,0.8034273,119710.0,119700.0,0.61029743]
[1753656784519,0.8034273,119710.0,119700.0,0.6019435]
[1753656784737,0.8034273,119710.0,119700.0,0.5989435]
[1753656784956,0.8034273,119710.0,119700.0,0.61129743]
[1753656785142,0.8034273,119710.0,119700.0,0.28461437]
[1753656785428,0.8034273,119710.0,119700.0,0.61965129]
[1753656785654,0.8034273,119710.0,119700.0,0.61129743]
[1753656786087,0.8034273,119710.0,119700.0,0.6029435]
[1753656786315,0.8034273,119710.0,119700.0,0.26790658]
[1753656786531,0.8034273,119710.0,119700.0,0.6029435]
[1753656787019,0.8034273,119710.0,119700.0,0.61129743]
[1753656787540,0.8034273,119710.0,119700.0,0.26790658]
[1753656788024,0.8034273,119710.0,119700.0,0.27626051]
[1753656788274,0.8034273,119710.0,119700.0,0.26790658]
[1753656788789,1.12164716,119710.0,119700.0,0.0074]
[1753656789012,1.13835371,119710.0,119700.0,0.0074]
[1753656789900,1.13835371,119710.0,119700.0,0.0004]
[1753656790337,1.13935371,119710.0,119700.0,0.0014]
[1753656793018,1.13835371,119710.0,119700.0,0.0014]
[1753656793459,1.14035371,119710.0,119700.0,0.0004]
[1753656794114,1.16545771,119710.0,119700.0,0.0004]
[1753656795507,1.09780729,119710.0,119700.0,0.0004]
[1753656800239,1.09580729,119710.0,119700.0,0.0004]
[1753656800448,1.09780729,119710.0,119700.0,0.0004]
[1753656800702,1.03472729,119710.0,119700.0,0.0004]
[1753656800946,0.64514427,119710.0,119700.0,0.06977]
[1753656801168,0.66557329,119710.0,119700.0,0.0645]
[1753656801416,0.66862329,119710.0,119700.0,0.0004]
[1753656801624,1.00862329,119710.0,119700.0,0.0004]
[1753656802731,1.00862329,119710.0,119700.0,0.0014]
[1753656808643,1.07312329,119710.0,119700.0,0.0014]
[1753656809454,1.04062329,119710.0,119700.0,0.0014]
[1753656809903,1.00862329,119710.0,119700.0,0.0014]
[1753656811581,1.07112329,119710.0,119700.0,0.0014]
[1753656813855,1.03862329,119710.0,119700.0,0.0014]
[1753656814084,1.00862329,119710.0,119700.0,0.0014]
[1753656815350,0.34835442,119690.0,119680.0,0.27327855]
[1753656815565,0.5545973,119690.0,119680.0,0.27844388]
[1753656815779,0.96295158,119690.0,119680.0,0.27204862]
[1753656815988,0.96295158,119690.0,119680.0,0.28040395]
[1753656816206,0.96295165,119690.0,119680.0,0.25852775]
[1753656816422,0.97130614,119690.0,119680.0,0.25852775]
[1753656816659,0.97130614,119690.0,119680.0,0.26152775]
[1753656816873,0.97130614,119690.0,119680.0,0.26352775]
[1753656817121,0.97966077,119690.0,119680.0,0.26352782]
[1753656817341,0.97130614,119690.0,119680.0,0.28023883]
[1753656817577,0.9796607,119690.0,119680.0,0.27188336]
[1753656817809,0.98801533,119690.0,119680.0,0.27188336]
[1753656818459,0.9796607,119690.0,119680.0,0.32159423]
[1753656818666,0.96295165,119690.0,119680.0,0.32994921]
[1753656818892,0.97130614,119690.0,119680.0,0.31323862]
[1753656819105,0.9796607,119690.0,119680.0,0.30488322]
[1753656819318,0.9796607,119690.0,119680.0,0.31323862]
[1753656819529,0.9796607,119690.0,119680.0,0.30488322]
[1753656819775,0.97130614,119690.0,119680.0,0.32159395]
[1753656820007,0.97130614,119690.0,119680.0,0.31323862]
[1753656820235,0.97130614,119690.0,119680.0,0.30488322]
[1753656820474,0.97966077,119690.0,119680.0,0.30488322]
[1753656820654,0.57966077,119690.0,119680.0,0.30488322]
[1753656820911,0.58801547,119690.0,119680.0,0.30488322]
[1753656821113,0.74675945,119690.0,119680.0,0.12106]
[1753656821369,0.79181945,119690.0,119680.0,0.12106]
[1753656821806,0.7751104,119690.0,119680.0,0.12106]
[1753656822034,0.7802504,119690.0,119680.0,0.037]
[1753656822257,0.77189563,119690.0,119680.0,0.037]
[1753656823340,0.61837663,119690.0,119680.0,0.20607229]
[1753656823781,0.62673154,119690.0,119680.0,0.20607229]
[1753656824426,0.79382987,119690.0,119680.0,0.20607229]
[1753656824635,0.79382987,119690.0,119680.0,0.03896]
[1753656824892,0.79382987,119690.0,119680.0,0.20607229]
[1753656826548,0.79382987,119690.0,119680.0,0.03896]
[1753656826761,0.79382987,119690.0,119680.0,0.20607229]
[1753656830999,0.78547531,119690.0,119680.0,0.037]
[1753656831294,0.78860531,119690.0,119680.0,0.037]
[1753656832649,0.78025054,119690.0,119680.0,0.037]
[1753656838537,0.77712054,119690.0,119680.0,0.037]
[1753656838750,0.77712054,119690.0,119680.0,0.03909]
[1753656838987,0.77712054,119690.0,119680.0,0.20620229]
[1753656840040,0.80251682,119690.0,119680.0,0.20620229]
[1753656840673,1.00323682,119690.0,119680.0,0.20620229]
[1753656841151,1.00323682,119690.0,119680.0,0.03909]
[1753656841377,1.00323682,119690.0,119680.0,0.20620229]
[1753656841568,1.00323682,119690.0,119680.0,0.23940229]
[1753656841884,1.00323682,119690.0,119680.0,0.23640229]
[1753656842349,1.00323682,119690.0,119680.0,0.23840229]
[1753656842979,1.00323682,119690.0,119680.0,0.23640229]
[1753656843815,1.00323682,119690.0,119680.0,0.23840229]
[1753656844235,1.00323682,119690.0,119680.0,0.07129]
[1753656844854,1.00323682,119690.0,119680.0,0.23840229]
[1753656845832,1.00323682,119690.0,119680.0,0.07129]
[1753656846778,0.99488191,119690.0,119680.0,0.07129]
[1753656847643,0.99488191,119690.0,119680.0,0.03809]
[1753656848503,0.99488191,119690.0,119680.0,0.20520229]
[1753656851768,0.99488191,119690.0,119680.0,0.03809]
[1753656852190,0.99795191,119690.0,119680.0,0.036]
[1753656853071,0.99795191,119690.0,119680.0,0.20311229]
[1753656854190,0.99795191,119690.0,119680.0,0.036]
[1753656856627,0.99795191,119690.0,119680.0,0.20311229]
[1753656858863,0.99795191,119690.0,119680.0,0.036]
[1753656861211,0.99795191,119690.0,119680.0,0.20311229]
[1753656861421,0.99795191,119690.0,119680.0,0.036]
[1753656862121,1.01540093,119690.0,119680.0,0.004]
[1753656862369,1.04650093,119690.0,119680.0,0.002]
[1753656862580,0.17546776,119680.0,119670.0,0.23272525]
[1753656862790,0.43540506,119680.0,119670.0,0.23481525]
[1753656863444,0.44376046,119680.0,119670.0,0.23481525]
[1753656863670,0.45211579,119680.0,119670.0,0.23481525]
[1753656863874,0.452601,119680.0,119670.0,0.23481525]
[1753656864078,0.452601,119680.0,119670.0,0.23781525]
[1753656865073,0.29384432,119680.0,119670.0,0.24617149]
[1753656865275,0.86095661,119680.0,119670.0,0.23781525]
[1753656865694,0.86095661,119680.0,119670.0,0.23981525]
[1753656866037,0.85260128,119680.0,119670.0,0.20771525]
[1753656866457,0.85260128,119680.0,119670.0,0.20471525]
[1753656866680,0.85260128,119680.0,119670.0,0.20771525]
[1753656867106,0.85260128,119680.0,119670.0,0.20271525]
[1753656867539,0.85260128,119680.0,119670.0,0.20571525]
[1753656867745,0.85260128,119680.0,119670.0,0.21407156]
[1753656867948,0.85260128,119680.0,119670.0,0.21807156]
[1753656868394,0.85260128,119680.0,119670.0,0.20971525]
[1753656868904,0.85260128,119680.0,119670.0,0.21807156]
[1753656869109,0.67713338,119680.0,119670.0,0.2264278]
[1753656869382,0.68548899,119680.0,119670.0,0.21807156]
[1753656870222,0.85260128,119680.0,119670.0,0.20971525]
[1753656871060,0.85260128,119680.0,119670.0,0.21807156]
[1753656871478,0.85260128,119680.0,119670.0,0.20971525]
[1753656871897,0.85260128,119680.0,119670.0,0.21807156]
[1753656872135,0.85260128,119680.0,119670.0,0.20971525]
[1753656872348,0.45260128,119680.0,119670.0,0.20971525]
[1753656874325,0.53244532,119680.0,119670.0,0.17452626]
[1753656877283,0.53244532,119680.0,119670.0,0.17152626]
[1753656877735,0.53244532,119680.0,119670.0,0.17352626]
[1753656877915,0.53244532,119680.0,119670.0,0.16952626]
[1753656878584,0.53244532,119680.0,119670.0,0.1810125]
[1753656878585,0.29458212,119680.0,119670.0,0.1810125]
[1753656878820,0.22339756,119680.0,119670.0,0.57071619]
[1753656879034,0.55504251,119680.0,119670.0,0.57071619]
[1753656879256,0.55504251,119680.0,119670.0,0.31911045]
[1753656879460,0.55504251,119680.0,119670.0,0.57071619]
[1753656881071,0.55504251,119680.0,119670.0,0.65450014]
[1753656883100,0.47056521,119680.0,119670.0,0.65450014]
[1753656883336,0.13056521,119680.0,119670.0,0.73753971]
[1753656883938,0.13056521,119680.0,119670.0,0.65450014]
[1753656884180,0.13056521,119680.0,119670.0,0.65250014]
[1753656884844,0.13056521,119680.0,119670.0,0.65450014]
[1753656885257,0.13056521,119680.0,119670.0,0.65650014]
[1753656885494,0.13056521,119680.0,119670.0,0.65450014]
[1753656885941,0.13056521,119680.0,119670.0,0.65550014]
[1753656886382,0.13056521,119680.0,119670.0,0.65950014]
[1753656892578,0.13056521,119680.0,119670.0,0.65550014]
[1753656892819,0.13056521,119680.0,119670.0,0.65150014]
[1753656893023,0.13056521,119680.0,119670.0,0.65750014]
[1753656893453,0.13056521,119680.0,119670.0,0.66250014]
[1753656893658,0.13056521,119680.0,119670.0,0.32711045]
[1753656894089,0.13056521,119680.0,119670.0,0.66250014]
[1753656894904,0.13056521,119680.0,119670.0,0.32711045]
[1753656895129,0.13056521,119680.0,119670.0,0.66250014]
[1753656895348,0.13056521,119680.0,119670.0,0.32711045]
[1753656895561,0.13056521,119680.0,119670.0,0.66250014]
[1753656902580,0.13056521,119680.0,119670.0,0.65750014]
[1753656902776,0.13056521,119680.0,119670.0,0.57764647]
[1753656903428,0.13056521,119680.0,119670.0,0.57364647]
[1753656905494,0.13056521,119680.0,119670.0,0.57564647]
[1753656910826,0.13056521,119680.0,119670.0,0.32411045]
[1753656911025,0.13056521,119680.0,119670.0,0.57564647]
[1753656917816,0.13056521,119680.0,119670.0,0.56964647]
[1753656917974,0.13056521,119680.0,119670.0,0.57064647]
[1753656918169,0.13056521,119680.0,119670.0,0.56864647]
[1753656918422,0.13056521,119680.0,119670.0,0.57064647]
[1753656918768,0.13056521,119680.0,119670.0,0.56964647]
[1753656918971,0.13056521,119680.0,119670.0,0.56764647]
[1753656919228,0.13056521,119680.0,119670.0,0.81918249]
[1753656919691,0.13056521,119680.0,119670.0,0.82118249]
[1753656920016,0.13056521,119680.0,119670.0,0.82218249]
[1753656921604,0.00048521,119680.0,119670.0,0.82218249]
[1753656921835,0.36896241,119710.0,119670.0,0.82218249]
[1753656921836,0.20508722,119710.0,119700.0,0.18379244]
[1753656922045,0.46509452,119710.0,119700.0,0.72885821]
[1753656922389,0.72061722,119710.0,119700.0,0.47732219]
[1753656923077,0.72373722,119710.0,119700.0,0.47528219]
[1753656924388,0.59369722,119710.0,119700.0,0.47528219]
[1753656924601,0.72373722,119710.0,119700.0,0.47528219]
[1753656925871,0.72373722,119710.0,119700.0,0.18379244]
[1753656926060,0.72373722,119710.0,119700.0,0.19214617]
[1753656926373,0.72373722,119710.0,119700.0,0.44368219]
[1753656926593,0.59369722,119710.0,119700.0,0.44368219]
[1753656926803,0.72369722,119710.0,119700.0,0.44368219]
[1753656927690,0.72369722,119710.0,119700.0,0.19214617]
[1753656928120,0.72369722,119710.0,119700.0,0.44368219]
[1753656933900,0.72369722,119710.0,119700.0,0.19214617]
[1753656934115,0.73205011,119710.0,119700.0,0.44368219]
[1753656934329,0.72369722,119710.0,119700.0,0.44368219]
[1753656937064,0.72369722,119710.0,119700.0,0.44468219]
[1753656937273,0.75499722,119710.0,119700.0,0.19314617]
[1753656937481,0.75499722,119710.0,119700.0,0.44468219]
[1753656939231,0.55427722,119710.0,119700.0,0.44468219]
[1753656940719,0.56263011,119710.0,119700.0,0.44468219]
[1753656940927,0.68816044,119710.0,119700.0,0.44468219]
[1753656941739,0.64710741,119710.0,119700.0,0.44468219]
[1753656942611,0.51710741,119710.0,119700.0,0.44468219]
[1753656942822,0.63871452,119710.0,119700.0,0.44468219]
[1753656943040,0.64706741,119710.0,119700.0,0.44468219]
[1753656943249,0.63871452,119710.0,119700.0,0.44468219]
[1753656944329,0.60741452,119710.0,119700.0,0.44468219]
[1753656944524,0.61576741,119710.0,119700.0,0.44468219]
[1753656945046,0.60741452,119710.0,119700.0,0.44468219]
[1753656945347,0.61576741,119710.0,119700.0,0.44468219]
[1753656945562,0.60741452,119710.0,119700.0,0.44468219]
[1753656945961,0.61576741,119710.0,119700.0,0.44468219]
[1753656946272,0.60741452,119710.0,119700.0,0.44468219]
[1753656948637,0.60429452,119710.0,119700.0,0.44468219]
[1753656948877,0.60429452,119710.0,119700.0,0.19314617]
[1753656949133,0.60429452,119710.0,119700.0,0.44468219]
[1753656949767,0.60429452,119710.0,119700.0,0.44568219]
[1753656950188,0.60429452,119710.0,119700.0,0.19214617]
[1753656950407,0.60429452,119710.0,119700.0,0.44368219]
[1753656950622,0.60429452,119710.0,119700.0,0.44468219]
[1753656951293,0.60429452,119710.0,119700.0,0.19314617]
[1753656951537,0.60742452,119710.0,119700.0,0.44468219]
[1753656956667,0.60742452,119710.0,119700.0,0.19314617]
[1753656956921,0.60742452,119710.0,119700.0,0.44468219]
[1753656958514,0.60429452,119710.0,119700.0,0.44468219]
[1753656959292,0.63765452,119710.0,119700.0,0.44468219]
[1753656959522,0.67840755,119710.0,119700.0,0.44468219]
[1753656959734,0.67840748,119710.0,119700.0,0.44468219]
[1753656959942,0.63765452,119710.0,119700.0,0.44468219]
[1753656961764,0.60745452,119710.0,119700.0,0.44468219]
[1753656962442,0.61580748,119710.0,119700.0,0.19314617]
[1753656962650,0.60745452,119710.0,119700.0,0.44468219]
[1753656962983,0.60745452,119710.0,119700.0,0.44368219]
[1753656963409,0.60745452,119710.0,119700.0,0.44468219]
[1753656964055,0.60745452,119710.0,119700.0,0.44368219]
[1753656965247,0.60429452,119710.0,119700.0,0.44468219]
[1753656966745,0.60421452,119710.0,119700.0,0.69621821]
[1753656968296,0.60421452,119710.0,119700.0,0.44468219]
[1753656968484,0.60421452,119710.0,119700.0,0.44668219]
[1753656968840,0.60421452,119710.0,119700.0,0.44872219]
[1753656969843,0.61256741,119710.0,119700.0,0.19718617]
[1753656970043,0.60421452,119710.0,119700.0,0.44668219]
[1753656970264,0.47433452,119710.0,119700.0,0.44668219]
[1753656970479,0.60421452,119710.0,119700.0,0.44668219]
[1753656971965,0.60421452,119710.0,119700.0,0.44872219]
[1753656972124,0.60421452,119710.0,119700.0,0.19718617]
[1753656972361,0.60421452,119710.0,119700.0,0.44872219]
[1753656975398,0.60421452,119710.0,119700.0,0.19718617]
[1753656975571,0.60421452,119710.0,119700.0,0.44872219]
[1753656979215,0.47433452,119710.0,119700.0,0.70025821]
[1753656979457,0.60417452,119710.0,119700.0,0.70025821]
[1753656980386,0.60417452,119710.0,119700.0,0.44872219]
[1753656981276,0.67978748,119710.0,119700.0,0.44668219]
[1753656981504,0.67978741,119710.0,119700.0,0.19514617]
[1753656981772,0.65654037,119710.0,119700.0,0.18679258]
[1753656982017,0.76414389,119710.0,119700.0,0.20350038]
[1753656982516,0.76414389,119710.0,119700.0,0.4520364]
[1753656982759,0.68814037,119710.0,119700.0,0.46039013]
[1753656982993,0.65654037,119710.0,119700.0,0.46139013]
[1753656983211,0.65654037,119710.0,119700.0,0.20985411]
[1753656983452,0.65654037,119710.0,119700.0,0.4530364]
[1753656983453,0.6648934,119710.0,119700.0,0.4530364]
[1753656983667,0.65654037,119710.0,119700.0,0.46139013]
[1753656983943,0.65654037,119710.0,119700.0,0.20985411]
[1753656984168,0.65654037,119710.0,119700.0,0.46139013]
[1753656985461,0.65654037,119710.0,119700.0,0.4530364]
[1753656985667,0.65654037,119710.0,119700.0,0.20985411]
[1753656985880,0.64818741,119710.0,119700.0,0.46139013]
[1753656987475,0.65654037,119710.0,119700.0,0.46139013]
[1753656987688,0.64818741,119710.0,119700.0,0.46139013]
[1753656988034,0.64818741,119710.0,119700.0,0.46039013]
[1753656988235,0.65654044,119710.0,119700.0,0.46039013]
[1753656988382,0.65654044,119710.0,119700.0,0.19214658]
[1753656988623,0.4213078,119700.0,119690.0,0.16709533]
[1753656988826,0.64407638,119700.0,119690.0,0.16709533]
[1753656989025,0.77539638,119700.0,119690.0,0.16709533]
[1753656989412,0.60831194,119700.0,119690.0,0.16709533]
[1753656989613,0.78375052,119700.0,119690.0,0.16709533]
[1753656989866,0.61666615,119700.0,119690.0,0.16709533]
[1753656990086,0.5999578,119700.0,119690.0,0.1754501]
[1753656990296,0.60831132,119700.0,119690.0,0.1754501]
[1753656990505,0.61666539,119700.0,119690.0,0.1764501]
[1753656990710,0.61666539,119700.0,119690.0,0.16809533]
[1753656990910,0.78375031,119700.0,119690.0,0.16709533]
[1753656991320,0.6083118,119700.0,119690.0,0.16709533]
[1753656991533,0.6083118,119700.0,119690.0,0.1754501]
[1753656991750,0.58325,119700.0,119690.0,0.19215922]
[1753656991957,0.59995766,119700.0,119690.0,0.1838048]
[1753656992163,0.60831173,119700.0,119690.0,0.18380494]
[1753656992359,0.60831173,119700.0,119690.0,0.17545017]
[1753656992566,0.59995759,119700.0,119690.0,0.18380494]
[1753656992764,0.60831159,119700.0,119690.0,0.17545024]
[1753656993057,0.58325,119700.0,119690.0,0.17545024]
[1753656993255,0.60831139,119700.0,119690.0,0.19215985]
[1753656993460,0.61666546,119700.0,119690.0,0.19215985]
[1753656993904,0.59995732,119700.0,119690.0,0.19215985]
[1753656994107,0.61666525,119700.0,119690.0,0.19215985]
[1753656994486,0.61666525,119700.0,119690.0,0.18380508]
[1753656994683,0.61666512,119700.0,119690.0,0.19215978]
[1753656994892,0.61666512,119700.0,119690.0,0.19215985]
[1753656995304,0.61666512,119700.0,119690.0,0.18380508]
[1753656995507,0.62501926,119700.0,119690.0,0.18380508]
[1753656995916,0.62501926,119700.0,119690.0,0.17545024]
[1753656996094,0.70949656,119700.0,119690.0,0.17545024]
[1753656996300,0.70114242,119700.0,119690.0,0.18380501]
[1753656996505,0.36550964,119700.0,119690.0,0.17545024]
[1753656996706,0.36550964,119700.0,119690.0,0.19215985]
[1753656996912,0.36550964,119700.0,119690.0,0.17645024]
[1753656997155,0.37386378,119700.0,119690.0,0.18480508]
[1753656997585,0.36550964,119700.0,119690.0,0.19315985]
[1753656997795,0.36550964,119700.0,119690.0,0.18480508]
[1753656998326,0.36550957,119700.0,119690.0,0.20151448]
[1753656998741,0.36550957,119700.0,119690.0,0.20151455]
[1753656998970,0.35715564,119700.0,119690.0,0.20986911]